[Event "*** Titled Tuesday Blitz"]
[Site "Chess.com"]
[Date "2021.03.16"]
[Round "4"]
[White "dosto07"]
[Black "enriquetejedor"]
[Result "0-1"]
[WhiteElo "2360"]
[BlackElo "2542"]
[TimeControl "180+1"]
[EndTime "10:39:39 PDT"]
[Termination "enriquetejedor won on time"]

1. e4 {[%clk 0:02:39.4]} 1... c6 {[%clk 0:02:40.8]} 2. d4 {[%clk 0:02:38.2]}
2... g6 {[%clk 0:02:20.5]} 3. Nc3 {[%clk 0:02:37.4]} 3... Bg7 {[%clk 0:02:18.3]}
4. Nf3 {[%clk 0:02:36.1]} 4... d5 {[%clk 0:02:12.1]} 5. h3 {[%clk 0:02:35.4]}
5... dxe4 {[%clk 0:01:55.6]} 6. Nxe4 {[%clk 0:02:34.7]} 6... Nf6 {[%clk
0:01:50.8]} 7. Nxf6+ {[%clk 0:02:34.1]} 7... exf6 {[%clk 0:01:51.7]} 8. Bc4
{[%clk 0:02:31.5]} 8... O-O {[%clk 0:01:46.1]} 9. O-O {[%clk 0:02:29.9]} 9...
Nd7 {[%clk 0:01:43.9]} 10. Re1 {[%clk 0:02:27.2]} 10... Nb6 {[%clk 0:01:38.6]}
11. Bb3 {[%clk 0:02:27.4]} 11... a5 {[%clk 0:01:36.2]} 12. a3 {[%clk 0:02:18]}
12... Re8 {[%clk 0:01:08.2]} 13. Bf4 {[%clk 0:02:10.9]} 13... a4 {[%clk
0:01:01.5]} 14. Ba2 {[%clk 0:02:10]} 14... Nd5 {[%clk 0:00:39.7]} 15. Bg3 {[%clk
0:02:08.7]} 15... Be6 {[%clk 0:00:36.6]} 16. Qd2 {[%clk 0:02:02.8]} 16... b5
{[%clk 0:00:33.8]} 17. Rad1 {[%clk 0:01:49.3]} 17... Qd7 {[%clk 0:00:23.1]} 18.
c3 {[%clk 0:01:47.4]} 18... Nb6 {[%clk 0:00:18.6]} 19. Bxe6 {[%clk 0:01:43]}
19... Rxe6 {[%clk 0:00:18.6]} 20. Rxe6 {[%clk 0:01:41.7]} 20... Qxe6 {[%clk
0:00:19.5]} 21. Re1 {[%clk 0:01:41.5]} 21... Qd7 {[%clk 0:00:19]} 22. Qe2 {[%clk
0:01:31.6]} 22... Bf8 {[%clk 0:00:12.3]} 23. Nd2 {[%clk 0:01:27.6]} 23... f5
{[%clk 0:00:10.2]} 24. Be5 {[%clk 0:01:15.9]} 24... Re8 {[%clk 0:00:08.4]} 25.
Qf1 {[%clk 0:01:13.1]} 25... Qe6 {[%clk 0:00:07.2]} 26. Nf3 {[%clk 0:00:57.9]}
26... Nc4 {[%clk 0:00:07.2]} 27. Bf4 {[%clk 0:00:56.5]} 27... Qc8 {[%clk
0:00:05.6]} 28. Bc1 {[%clk 0:00:56]} 28... Re4 {[%clk 0:00:03.2]} 29. Nd2 {[%clk
0:00:54]} 29... Rxe1 {[%clk 0:00:02.2]} 30. Qxe1 {[%clk 0:00:54.1]} 30... Nxd2
{[%clk 0:00:02]} 31. Bxd2 {[%clk 0:00:53.3]} 31... Qe6 {[%clk 0:00:01.8]} 32.
Qxe6 {[%clk 0:00:32.8]} 32... fxe6 {[%clk 0:00:02.7]} 33. Kf1 {[%clk 0:00:33.2]}
33... Bd6 {[%clk 0:00:02.9]} 34. Ke2 {[%clk 0:00:33.4]} 34... Kf7 {[%clk
0:00:03.3]} 35. Kd3 {[%clk 0:00:33.3]} 35... e5 {[%clk 0:00:03.1]} 36. c4 {[%clk
0:00:28.8]} 36... e4+ {[%clk 0:00:02.7]} 37. Kc3 {[%clk 0:00:23.9]} 37... Ke6
{[%clk 0:00:03.6]} 38. d5+ {[%clk 0:00:18.9]} 38... Kd7 {[%clk 0:00:03.1]} 39.
dxc6+ {[%clk 0:00:17.9]} 39... Kxc6 {[%clk 0:00:03.3]} 40. cxb5+ {[%clk
0:00:17.8]} 40... Kxb5 {[%clk 0:00:03.7]} 41. Kd4 {[%clk 0:00:17.4]} 41... Bf8
{[%clk 0:00:03.4]} 42. Bc3 {[%clk 0:00:15]} 42... Bg7+ {[%clk 0:00:03.4]} 43.
Kd5 {[%clk 0:00:15.3]} 43... Bf8 {[%clk 0:00:02.6]} 44. g4 {[%clk 0:00:11.9]}
44... Bc5 {[%clk 0:00:02.1]} 45. gxf5 {[%clk 0:00:09.9]} 45... gxf5 {[%clk
0:00:03]} 46. Be1 {[%clk 0:00:09.8]} 46... Bb6 {[%clk 0:00:02.8]} 47. Ke5 {[%clk
0:00:09.5]} 47... e3 {[%clk 0:00:03.1]} 48. fxe3 {[%clk 0:00:08.4]} 48... Bxe3
{[%clk 0:00:04]} 49. Kxf5 {[%clk 0:00:08.3]} 49... Kc4 {[%clk 0:00:04.6]} 50.
Bc3 {[%clk 0:00:07.8]} 50... Bc1 {[%clk 0:00:04.2]} 51. Kf6 {[%clk 0:00:07.5]}
51... Kb3 {[%clk 0:00:03.8]} 52. Kg7 {[%clk 0:00:07.3]} 52... h5 {[%clk
0:00:03.1]} 53. Kg6 {[%clk 0:00:07.5]} 53... h4 {[%clk 0:00:03.1]} 54. Kh5
{[%clk 0:00:07.3]} 54... Bxb2 {[%clk 0:00:03.6]} 55. Bxb2 {[%clk 0:00:07.3]}
55... Kxb2 {[%clk 0:00:04]} 56. Kxh4 {[%clk 0:00:08]} 56... Kxa3 {[%clk
0:00:04.4]} 57. Kg5 {[%clk 0:00:08.2]} 57... Kb4 {[%clk 0:00:04.6]} 58. h4
{[%clk 0:00:09.1]} 58... a3 {[%clk 0:00:05.5]} 59. h5 {[%clk 0:00:09.5]} 59...
a2 {[%clk 0:00:06.4]} 60. h6 {[%clk 0:00:09.7]} 60... a1=Q {[%clk 0:00:07.3]}
61. h7 {[%clk 0:00:09.2]} 61... Qh8 {[%clk 0:00:08.2]} 62. Kg6 {[%clk
0:00:09.1]} 62... Kc5 {[%clk 0:00:08.9]} 63. Kh6 {[%clk 0:00:08.9]} 63... Kd6
{[%clk 0:00:09.8]} 64. Kg6 {[%clk 0:00:07.9]} 64... Ke5 {[%clk 0:00:10.7]} 65.
Kh6 {[%clk 0:00:08]} 65... Kf5 {[%clk 0:00:11.1]} 0-1

[Event "*** Titled Tuesday Blitz"]
[Site "Chess.com"]
[Date "2021.03.16"]
[Round "4"]
[White "aa175"]
[Black "KuzubovYuriy"]
[Result "0-1"]
[WhiteElo "2563"]
[BlackElo "2854"]
[TimeControl "180+1"]
[EndTime "10:39:45 PDT"]
[Termination "KuzubovYuriy won by resignation"]

1. d4 {[%clk 0:03:00.9]} 1... g6 {[%clk 0:02:57.9]} 2. Bf4 {[%clk 0:02:53.8]}
2... Bg7 {[%clk 0:02:58.2]} 3. e3 {[%clk 0:02:52.3]} 3... d6 {[%clk 0:02:58]} 4.
Nf3 {[%clk 0:02:51.4]} 4... Nc6 {[%clk 0:02:58.6]} 5. Bc4 {[%clk 0:02:45.5]}
5... Nh6 {[%clk 0:02:57]} 6. h4 {[%clk 0:02:43.6]} 6... Bg4 {[%clk 0:02:52.8]}
7. Nc3 {[%clk 0:02:26.3]} 7... e5 {[%clk 0:02:49.9]} 8. dxe5 {[%clk 0:02:24.7]}
8... dxe5 {[%clk 0:02:50.8]} 9. Qxd8+ {[%clk 0:02:24]} 9... Rxd8 {[%clk
0:02:51.7]} 10. Bg5 {[%clk 0:02:23.4]} 10... Rd7 {[%clk 0:02:24.6]} 11. Ne4
{[%clk 0:02:19.2]} 11... Bxf3 {[%clk 0:02:19.7]} 12. gxf3 {[%clk 0:02:15.7]}
12... Nf5 {[%clk 0:01:51.7]} 13. Nc5 {[%clk 0:02:10.3]} 13... Rd6 {[%clk
0:01:30.4]} 14. Nxb7 {[%clk 0:02:09.1]} 14... h6 {[%clk 0:01:28]} 15. Nxd6+
{[%clk 0:02:07.3]} 15... Nxd6 {[%clk 0:01:20.8]} 16. Bd5 {[%clk 0:02:07.1]}
16... Nb4 {[%clk 0:01:20.6]} 17. Bb3 {[%clk 0:01:46]} 17... hxg5 {[%clk
0:01:20.4]} 18. c3 {[%clk 0:01:41.8]} 18... Na6 {[%clk 0:01:12.8]} 19. Ke2
{[%clk 0:01:29.9]} 19... gxh4 {[%clk 0:01:13.1]} 20. Rag1 {[%clk 0:01:26.9]}
20... Nc5 {[%clk 0:01:09.5]} 21. Rg4 {[%clk 0:01:24.1]} 21... Bf6 {[%clk
0:01:07.4]} 22. Rb4 {[%clk 0:01:15]} 22... Ke7 {[%clk 0:01:05.8]} 23. Bc2 {[%clk
0:01:11.4]} 23... g5 {[%clk 0:00:53.2]} 24. Rg4 {[%clk 0:01:02.3]} 24... Rb8
{[%clk 0:00:50.5]} 25. b4 {[%clk 0:00:58.3]} 25... Nd7 {[%clk 0:00:49.3]} 26. f4
{[%clk 0:00:49.7]} 26... exf4 {[%clk 0:00:45]} 27. exf4 {[%clk 0:00:50.6]} 27...
gxf4 {[%clk 0:00:40.2]} 28. Rxf4 {[%clk 0:00:51.5]} 28... Ne5 {[%clk 0:00:39.3]}
29. Bb3 {[%clk 0:00:43.5]} 29... Bg5 {[%clk 0:00:34.7]} 30. Rd4 {[%clk
0:00:39.9]} 30... Nb5 {[%clk 0:00:33.8]} 31. f4 {[%clk 0:00:11.3]} 31... Nxd4+
{[%clk 0:00:31]} 32. cxd4 {[%clk 0:00:12.2]} 32... Nc6 {[%clk 0:00:29.9]} 33.
fxg5 {[%clk 0:00:11.4]} 33... Nxd4+ {[%clk 0:00:30.6]} 34. Kd1 {[%clk
0:00:03.8]} 34... Nxb3 {[%clk 0:00:31.1]} 35. Rxh4 {[%clk 0:00:04]} 35... a5
{[%clk 0:00:24.9]} 36. Re4+ {[%clk 0:00:02.2]} 36... Kd6 {[%clk 0:00:24.3]} 37.
axb3 {[%clk 0:00:02.5]} 37... Rxb4 {[%clk 0:00:24.3]} 38. Re3 {[%clk 0:00:02.1]}
38... Rb5 {[%clk 0:00:21.5]} 39. Rg3 {[%clk 0:00:01.6]} 39... Ke7 {[%clk
0:00:16]} 40. Kc2 {[%clk 0:00:02]} 40... Rb6 {[%clk 0:00:15.9]} 41. Re3+ {[%clk
0:00:02]} 41... Re6 {[%clk 0:00:15.7]} 42. Rf3 {[%clk 0:00:02.8]} 42... Re5
{[%clk 0:00:15.3]} 43. Rg3 {[%clk 0:00:03.4]} 43... Kf8 {[%clk 0:00:15.4]} 44.
Kc3 {[%clk 0:00:03.8]} 44... Kg7 {[%clk 0:00:15.6]} 45. Kc4 {[%clk 0:00:04.1]}
45... Kg6 {[%clk 0:00:15.6]} 46. Rg1 {[%clk 0:00:02.9]} 46... Re6 {[%clk
0:00:15]} 47. Kb5 {[%clk 0:00:02.5]} 47... Rb6+ {[%clk 0:00:15.2]} 48. Ka4
{[%clk 0:00:02.9]} 48... Rb4+ {[%clk 0:00:15]} 49. Ka3 {[%clk 0:00:02.9]} 49...
Rb5 {[%clk 0:00:15.4]} 50. Rg3 {[%clk 0:00:02.9]} 50... Rxg5 {[%clk 0:00:15.2]}
51. Rf3 {[%clk 0:00:03.4]} 51... Rb5 {[%clk 0:00:14.7]} 52. Ka4 {[%clk
0:00:03.4]} 52... Rb7 {[%clk 0:00:14.5]} 53. Kxa5 {[%clk 0:00:03.1]} 53... f5
{[%clk 0:00:14.8]} 54. b4 {[%clk 0:00:03.4]} 54... Kg5 {[%clk 0:00:14.4]} 55.
Rg3+ {[%clk 0:00:03.3]} 55... Kf6 {[%clk 0:00:13.8]} 56. Rf3 {[%clk 0:00:03]}
56... Ke5 {[%clk 0:00:14.2]} 57. Re3+ {[%clk 0:00:03.4]} 57... Kd4 {[%clk
0:00:14.5]} 58. Rf3 {[%clk 0:00:03.9]} 58... Ke4 {[%clk 0:00:13.9]} 59. Rh3
{[%clk 0:00:03.7]} 59... f4 {[%clk 0:00:14.1]} 60. Rh8 {[%clk 0:00:03.7]} 60...
f3 {[%clk 0:00:13.7]} 61. Rf8 {[%clk 0:00:03.1]} 61... Ke3 {[%clk 0:00:13.7]}
62. b5 {[%clk 0:00:03.7]} 62... f2 {[%clk 0:00:13.4]} 63. Rf6 {[%clk 0:00:02.2]}
63... Rb6 {[%clk 0:00:12]} 64. Rf7 {[%clk 0:00:01.7]} 64... Re6 {[%clk
0:00:11.7]} 65. Rf8 {[%clk 0:00:01]} 65... Ke2 {[%clk 0:00:12]} 66. Rf7 {[%clk
0:00:01.5]} 66... f1=Q {[%clk 0:00:12.1]} 67. Rxf1 {[%clk 0:00:02]} 67... Kxf1
{[%clk 0:00:12.7]} 68. Kb4 {[%clk 0:00:02.9]} 68... Ke2 {[%clk 0:00:12.7]} 69.
Kc5 {[%clk 0:00:03.8]} 69... Kd3 {[%clk 0:00:12.4]} 70. Kd5 {[%clk 0:00:03.5]}
70... Rb6 {[%clk 0:00:12.6]} 71. Kc5 {[%clk 0:00:04.4]} 71... Kc3 {[%clk
0:00:13]} 72. Kd5 {[%clk 0:00:05.3]} 72... Kb4 {[%clk 0:00:13.3]} 0-1

[Event "*** Titled Tuesday Blitz"]
[Site "Chess.com"]
[Date "2021.03.16"]
[Round "4"]
[White "Mrlammy"]
[Black "Aradhya2000"]
[Result "1-0"]
[WhiteElo "2312"]
[BlackElo "2567"]
[TimeControl "180+1"]
[EndTime "10:39:48 PDT"]
[Termination "Mrlammy won by checkmate"]

1. e4 {[%clk 0:03:00.9]} 1... e5 {[%clk 0:02:59.8]} 2. Nf3 {[%clk 0:03:00.4]}
2... Nc6 {[%clk 0:02:59.9]} 3. Bb5 {[%clk 0:03:00.2]} 3... a6 {[%clk 0:02:59.1]}
4. Bxc6 {[%clk 0:03:00.2]} 4... dxc6 {[%clk 0:03:00]} 5. O-O {[%clk 0:03:00.1]}
5... f6 {[%clk 0:03:00.4]} 6. d4 {[%clk 0:02:59.5]} 6... Bg4 {[%clk 0:03:00.2]}
7. dxe5 {[%clk 0:02:51.5]} 7... Qxd1 {[%clk 0:02:59.9]} 8. Rxd1 {[%clk
0:02:51.5]} 8... fxe5 {[%clk 0:03:00]} 9. Be3 {[%clk 0:02:49.3]} 9... Bxf3
{[%clk 0:02:50.6]} 10. gxf3 {[%clk 0:02:50.2]} 10... Bd6 {[%clk 0:02:50.7]} 11.
Nd2 {[%clk 0:02:49.3]} 11... Nf6 {[%clk 0:02:43.6]} 12. Nc4 {[%clk 0:02:48.2]}
12... O-O-O {[%clk 0:02:43.3]} 13. a4 {[%clk 0:02:37.2]} 13... Rhf8 {[%clk
0:02:36.3]} 14. Bg5 {[%clk 0:02:33]} 14... h6 {[%clk 0:02:32.8]} 15. Bh4 {[%clk
0:02:32.8]} 15... g5 {[%clk 0:02:22.5]} 16. Bg3 {[%clk 0:02:32.9]} 16... Rfe8
{[%clk 0:02:22.8]} 17. Rd3 {[%clk 0:02:27]} 17... Nh5 {[%clk 0:01:47.9]} 18.
Rad1 {[%clk 0:02:23.7]} 18... Nxg3 {[%clk 0:01:47.7]} 19. hxg3 {[%clk
0:02:20.4]} 19... Re6 {[%clk 0:01:47.3]} 20. Kg2 {[%clk 0:02:18.8]} 20... b5
{[%clk 0:01:46.9]} 21. Na5 {[%clk 0:02:11.4]} 21... Rf8 {[%clk 0:01:30.5]} 22.
Nxc6 {[%clk 0:02:01.1]} 22... bxa4 {[%clk 0:01:28.9]} 23. Na5 {[%clk 0:01:57.9]}
23... Kd7 {[%clk 0:00:32.2]} 24. Nc4 {[%clk 0:01:55.7]} 24... Ke7 {[%clk
0:00:32.4]} 25. Ra1 {[%clk 0:01:51.3]} 25... Bc5 {[%clk 0:00:22.6]} 26. Rxa4
{[%clk 0:01:50.6]} 26... Rd8 {[%clk 0:00:20]} 27. Rxd8 {[%clk 0:01:48.5]} 27...
Kxd8 {[%clk 0:00:20.9]} 28. b3 {[%clk 0:01:46.3]} 28... Bd4 {[%clk 0:00:20]} 29.
Ra5 {[%clk 0:01:43.3]} 29... Rc6 {[%clk 0:00:20.1]} 30. Rd5+ {[%clk 0:01:41.3]}
30... Ke7 {[%clk 0:00:19.1]} 31. Nxe5 {[%clk 0:01:37.9]} 31... Bxe5 {[%clk
0:00:19.5]} 32. Rxe5+ {[%clk 0:01:38.8]} 32... Kf6 {[%clk 0:00:19.5]} 33. Rf5+
{[%clk 0:01:38.5]} 33... Ke6 {[%clk 0:00:19.8]} 34. c4 {[%clk 0:01:38.8]} 34...
Rb6 {[%clk 0:00:20.2]} 35. Ra5 {[%clk 0:01:38.3]} 35... c6 {[%clk 0:00:18.3]}
36. c5 {[%clk 0:01:35.8]} 36... Rxb3 {[%clk 0:00:18.5]} 37. Rxa6 {[%clk
0:01:35.8]} 37... Kd7 {[%clk 0:00:18.9]} 38. Ra7+ {[%clk 0:01:36.1]} 38... Ke6
{[%clk 0:00:19.1]} 39. Rh7 {[%clk 0:01:35.4]} 39... Rc3 {[%clk 0:00:19.4]} 40.
Rxh6+ {[%clk 0:01:35.4]} 40... Kd7 {[%clk 0:00:19.7]} 41. Rd6+ {[%clk
0:01:33.5]} 41... Kc7 {[%clk 0:00:19.6]} 42. Rg6 {[%clk 0:01:30.9]} 42... Rxc5
{[%clk 0:00:19.7]} 43. f4 {[%clk 0:01:31.2]} 43... gxf4 {[%clk 0:00:20.1]} 44.
gxf4 {[%clk 0:01:32.1]} 44... Rc4 {[%clk 0:00:19.6]} 45. e5 {[%clk 0:01:30.2]}
45... Rxf4 {[%clk 0:00:19]} 46. Kg3 {[%clk 0:01:27.9]} 46... Re4 {[%clk
0:00:15.2]} 47. f4 {[%clk 0:01:27.5]} 47... c5 {[%clk 0:00:15.6]} 48. Kf3 {[%clk
0:01:26.9]} 48... Re1 {[%clk 0:00:15.3]} 49. Kg4 {[%clk 0:00:56.8]} 49... c4
{[%clk 0:00:14.8]} 50. Kf5 {[%clk 0:00:55.2]} 50... Re3 {[%clk 0:00:13.3]} 51.
Rg7+ {[%clk 0:00:55.1]} 51... Kc6 {[%clk 0:00:13.1]} 52. Rg8 {[%clk 0:00:55.5]}
52... c3 {[%clk 0:00:13]} 53. Rc8+ {[%clk 0:00:54.8]} 53... Kd5 {[%clk
0:00:10.7]} 54. Kf6 {[%clk 0:00:49.8]} 54... Ke4 {[%clk 0:00:10.1]} 55. f5
{[%clk 0:00:46.9]} 55... Rf3 {[%clk 0:00:07.4]} 56. Rc4+ {[%clk 0:00:44.2]}
56... Kd3 {[%clk 0:00:07.7]} 57. Rc7 {[%clk 0:00:41.1]} 57... c2 {[%clk
0:00:08.1]} 58. e6 {[%clk 0:00:36.7]} 58... Kd2 {[%clk 0:00:06.4]} 59. Rxc2+
{[%clk 0:00:35.9]} 59... Kxc2 {[%clk 0:00:06]} 60. e7 {[%clk 0:00:36.4]} 60...
Re3 {[%clk 0:00:06.4]} 61. Kf7 {[%clk 0:00:36.7]} 61... Re5 {[%clk 0:00:06.7]}
62. f6 {[%clk 0:00:35]} 62... Kd3 {[%clk 0:00:05.1]} 63. e8=Q {[%clk 0:00:34.9]}
63... Rxe8 {[%clk 0:00:06]} 64. Kxe8 {[%clk 0:00:35.4]} 64... Ke4 {[%clk
0:00:06.6]} 65. f7 {[%clk 0:00:36.1]} 65... Ke5 {[%clk 0:00:07]} 66. f8=Q {[%clk
0:00:37]} 66... Ke6 {[%clk 0:00:07.5]} 67. Qe7+ {[%clk 0:00:36.7]} 67... Kd5
{[%clk 0:00:07.7]} 68. Kd8 {[%clk 0:00:37.6]} 68... Kc6 {[%clk 0:00:07.7]} 69.
Qf6+ {[%clk 0:00:37]} 69... Kd5 {[%clk 0:00:07.8]} 70. Kd7 {[%clk 0:00:37.3]}
70... Ke4 {[%clk 0:00:08.2]} 71. Ke6 {[%clk 0:00:36.9]} 71... Kd3 {[%clk
0:00:08.7]} 72. Qh4 {[%clk 0:00:36.1]} 72... Ke3 {[%clk 0:00:07.8]} 73. Ke5
{[%clk 0:00:36.7]} 73... Kf3 {[%clk 0:00:08.2]} 74. Qf4+ {[%clk 0:00:37.1]}
74... Kg2 {[%clk 0:00:08]} 75. Kf5 {[%clk 0:00:37.4]} 75... Kh1 {[%clk
0:00:08.2]} 76. Ke4 {[%clk 0:00:38.3]} 76... Kg2 {[%clk 0:00:08.6]} 77. Ke3
{[%clk 0:00:38.5]} 77... Kh1 {[%clk 0:00:09.1]} 78. Qg5 {[%clk 0:00:38.5]} 78...
Kh2 {[%clk 0:00:09.1]} 79. Kf2 {[%clk 0:00:38.7]} 79... Kh1 {[%clk 0:00:09.7]}
80. Qh5# {[%clk 0:00:38.9]} 1-0

[Event "*** Titled Tuesday Blitz"]
[Site "Chess.com"]
[Date "2021.03.16"]
[Round "4"]
[White "mbojan"]
[Black "Onischuk_V"]
[Result "1-0"]
[WhiteElo "2648"]
[BlackElo "2829"]
[TimeControl "180+1"]
[EndTime "10:39:50 PDT"]
[Termination "mbojan won by resignation"]

1. g3 {[%clk 0:03:00.9]} 1... g6 {[%clk 0:02:59.5]} 2. Bg2 {[%clk 0:03:00.4]}
2... Bg7 {[%clk 0:03:00.1]} 3. Nf3 {[%clk 0:02:59.6]} 3... Nf6 {[%clk
0:03:00.2]} 4. O-O {[%clk 0:02:59.4]} 4... O-O {[%clk 0:03:00.9]} 5. c4 {[%clk
0:02:59.4]} 5... d6 {[%clk 0:03:01.4]} 6. d4 {[%clk 0:02:59.1]} 6... Nc6 {[%clk
0:03:01.5]} 7. Nc3 {[%clk 0:02:54.7]} 7... e5 {[%clk 0:03:01.4]} 8. dxe5 {[%clk
0:02:49.4]} 8... dxe5 {[%clk 0:03:01.1]} 9. Qb3 {[%clk 0:02:46.1]} 9... Nd4
{[%clk 0:02:53.8]} 10. Nxd4 {[%clk 0:02:45.2]} 10... exd4 {[%clk 0:02:53.5]} 11.
Nd5 {[%clk 0:02:34]} 11... c6 {[%clk 0:02:49.2]} 12. Nxf6+ {[%clk 0:02:22.6]}
12... Qxf6 {[%clk 0:02:48.6]} 13. Bf4 {[%clk 0:02:17]} 13... Re8 {[%clk
0:02:44.2]} 14. Rfe1 {[%clk 0:02:16.8]} 14... a5 {[%clk 0:02:26.6]} 15. a4
{[%clk 0:02:10.7]} 15... Qe7 {[%clk 0:02:23.4]} 16. Qa3 {[%clk 0:01:59.6]} 16...
Qxa3 {[%clk 0:02:17.8]} 17. Rxa3 {[%clk 0:02:00.5]} 17... Be6 {[%clk 0:02:16.9]}
18. b3 {[%clk 0:01:44.6]} 18... Bf8 {[%clk 0:02:16.8]} 19. Ra2 {[%clk
0:01:40.6]} 19... Bf5 {[%clk 0:01:59.5]} 20. Rd1 {[%clk 0:01:23.6]} 20... Bc5
{[%clk 0:01:50.4]} 21. Bf3 {[%clk 0:01:20.9]} 21... f6 {[%clk 0:01:45.9]} 22.
Kg2 {[%clk 0:01:17.7]} 22... g5 {[%clk 0:01:44.1]} 23. g4 {[%clk 0:01:17.7]}
23... Bg6 {[%clk 0:01:36.3]} 24. Bc1 {[%clk 0:01:10.6]} 24... Rad8 {[%clk
0:01:29.7]} 25. Bd2 {[%clk 0:01:02.5]} 25... Bb6 {[%clk 0:01:21.9]} 26. c5
{[%clk 0:00:45.9]} 26... Bc7 {[%clk 0:01:13.3]} 27. b4 {[%clk 0:00:46.1]} 27...
axb4 {[%clk 0:01:06]} 28. Bxb4 {[%clk 0:00:47]} 28... Be5 {[%clk 0:00:59.1]} 29.
a5 {[%clk 0:00:45.5]} 29... Bf7 {[%clk 0:00:58.5]} 30. Ra3 {[%clk 0:00:41.1]}
30... Bc4 {[%clk 0:00:57.9]} 31. Rc1 {[%clk 0:00:19.9]} 31... Ba6 {[%clk
0:00:56.8]} 32. Bd2 {[%clk 0:00:20.1]} 32... Bc7 {[%clk 0:00:54.7]} 33. e3
{[%clk 0:00:15.2]} 33... d3 {[%clk 0:00:46.2]} 34. Rcc3 {[%clk 0:00:09.5]} 34...
Kf7 {[%clk 0:00:39.5]} 35. h3 {[%clk 0:00:08.9]} 35... Rd7 {[%clk 0:00:30.6]}
36. Bd1 {[%clk 0:00:09]} 36... Kg6 {[%clk 0:00:28.9]} 37. Bb3 {[%clk 0:00:08.5]}
37... h5 {[%clk 0:00:24.3]} 38. Bc4 {[%clk 0:00:07.8]} 38... Bxc4 {[%clk
0:00:22.4]} 39. Rxc4 {[%clk 0:00:07.7]} 39... Ra8 {[%clk 0:00:21.8]} 40. Rd4
{[%clk 0:00:06]} 40... Rxd4 {[%clk 0:00:20.2]} 41. exd4 {[%clk 0:00:06.9]} 41...
hxg4 {[%clk 0:00:20.5]} 42. hxg4 {[%clk 0:00:07.8]} 42... f5 {[%clk 0:00:16.2]}
43. gxf5+ {[%clk 0:00:05.9]} 43... Kxf5 {[%clk 0:00:16.3]} 44. Rxd3 {[%clk
0:00:06.3]} 44... Ke4 {[%clk 0:00:16.5]} 45. Rb3 {[%clk 0:00:06.3]} 45... Ra7
{[%clk 0:00:16.9]} 46. Bxg5 {[%clk 0:00:03.9]} 46... Kxd4 {[%clk 0:00:16.8]} 47.
Be3+ {[%clk 0:00:04.3]} 47... Kc4 {[%clk 0:00:17]} 48. Rb1 {[%clk 0:00:03.1]}
48... Bxa5 {[%clk 0:00:14.9]} 49. Kf3 {[%clk 0:00:03.1]} 49... Bb4 {[%clk
0:00:14.5]} 50. Rc1+ {[%clk 0:00:02.6]} 50... Kb5 {[%clk 0:00:12.9]} 51. Rb1
{[%clk 0:00:03]} 51... Ra2 {[%clk 0:00:12.9]} 52. Ke4 {[%clk 0:00:02.6]} 52...
Kc4 {[%clk 0:00:13.1]} 53. Rc1+ {[%clk 0:00:02.3]} 53... Bc3 {[%clk 0:00:13.2]}
54. Bd4 {[%clk 0:00:02.2]} 54... Re2+ {[%clk 0:00:12.4]} 55. Kf3 {[%clk
0:00:02.5]} 55... Re1 {[%clk 0:00:03.3]} 56. Rxe1 {[%clk 0:00:01.5]} 56... Bxe1
{[%clk 0:00:03.3]} 57. Ke4 {[%clk 0:00:02.4]} 57... Bb4 {[%clk 0:00:03.3]} 58.
f4 {[%clk 0:00:02.4]} 58... Bxc5 {[%clk 0:00:03.6]} 59. Bxc5 {[%clk 0:00:03.3]}
59... Kxc5 {[%clk 0:00:04.1]} 60. Ke5 {[%clk 0:00:03.9]} 60... Kb6 {[%clk
0:00:02.4]} 61. f5 {[%clk 0:00:04.8]} 61... c5 {[%clk 0:00:03]} 62. f6 {[%clk
0:00:04.9]} 62... c4 {[%clk 0:00:03.1]} 63. f7 {[%clk 0:00:05.4]} 63... c3
{[%clk 0:00:03.7]} 64. f8=Q {[%clk 0:00:05.6]} 64... c2 {[%clk 0:00:04.4]} 65.
Qb4+ {[%clk 0:00:06]} 1-0